bitfinex-derivatives/quotes_ETHF0:USTF0_20240830
["timestamp","ask_amount","ask_price","bid_price","bid_amount"]
[1725042516595,6.37872,2508.4,2508.3,0.00598838]
[1725042516894,9.98204956,2508.4,2508.3,0.00598838]
[1725042517101,4.60012956,2508.4,2508.3,4.39111838]
[1725042517395,3.24687,2509.3,2508.7,0.39867]
[1725042517595,3.24687,2509.3,2508.6,0.39868]
[1725042517596,0.99656,2509.0,2508.6,0.39868]
[1725042517789,1.39529,2508.8,2508.7,3.2078]
[1725042517989,1.39552,2508.4,2508.3,0.00598838]
[1725042518393,6.37872,2508.4,2508.3,0.00598838]
[1725042520495,16.64580929,2508.4,2508.3,0.00598838]
[1725042520797,0.39872,2508.4,2508.3,7.20018838]
[1725042520996,0.39869,2508.6,2508.4,0.3987]
[1725042521294,0.39864,2508.9,2508.7,0.39866]
[1725042521684,4.4288,2509.2,2508.5,0.39869]
[1725042521897,4.4288,2509.2,2508.3,0.00598838]
[1725042521898,0.99657,2509.0,2508.3,0.00598838]
[1725042522098,4.47808713,2509.1,2508.6,3.2078]
[1725042522284,0.99656,2509.0,2508.6,3.2078]
[1725042522493,0.39865,2508.9,2508.6,3.2078]
[1725042522693,0.39865,2508.9,2508.7,0.39867]
[1725042522893,0.39863,2509.0,2508.7,0.39867]
[1725042523088,0.99656,2509.0,2508.5,0.39869]
[1725042523298,0.39866,2508.8,2508.6,3.2078]
[1725042523699,3.9864,2508.8,2508.3,0.00598838]
[1725042523903,4.20362847,2508.7,2508.3,0.00598838]
[1725042524196,0.99664,2508.8,2508.5,3.2078]
[1725042524396,0.99664,2508.8,2508.3,0.00598838]
[1725042524397,0.3987,2508.5,2508.3,0.00598838]
[1725042524600,0.39871,2508.5,2508.3,0.00598838]
[1725042525304,0.99668,2508.7,2508.3,0.00598838]
[1725042525500,0.39872,2508.4,2508.3,0.00598838]
[1725042525702,1.39552,2508.4,2508.3,0.00598838]
[1725042525903,5.38192,2508.4,2508.3,0.00598838]
[1725042526513,0.39872,2508.4,2508.3,0.00598838]
[1725042526903,15.58652,2508.4,2508.3,0.00598838]
[1725042527107,0.99697,2508.0,2507.6,5.18884]
[1725042527409,0.99697,2508.0,2507.4,3.60667]
[1725042527410,0.39885,2507.6,2507.4,3.60667]
[1725042527613,0.99706,2507.8,2507.4,3.2078]
[1725042527809,0.39884,2507.6,2507.5,0.39885]
[1725042528004,0.99697,2508.0,2507.4,3.2078]
[1725042528214,0.39882,2507.8,2507.6,0.39883]
[1725042528415,0.39882,2507.8,2507.4,3.2078]
[1725042528416,0.39881,2507.8,2507.7,0.39882]
[1725042528615,0.39881,2507.8,2507.7,3.60662]
[1725042528817,0.39883,2507.7,2507.6,0.39883]
[1725042529316,0.39882,2507.8,2507.7,0.39883]
[1725042529511,0.99697,2508.0,2507.4,3.2078]
[1725042529711,0.39882,2507.8,2507.7,0.39883]
[1725042530021,0.39881,2507.8,2507.7,0.39882]
[1725042530212,0.39881,2507.8,2507.7,3.60662]
[1725042530515,0.39872,2508.4,2508.3,0.39872]
[1725042530721,1.00271838,2508.6,2508.1,7.9978]
[1725042530928,0.39878,2508.0,2507.8,7.0042]
[1725042531123,0.39879,2507.9,2507.8,4.79]
[1725042531421,0.39878,2508.0,2507.9,0.39879]
[1725042531725,0.39876,2508.2,2508.0,0.39878]
[1725042532030,0.39876,2508.1,2508.0,0.39878]
[1725042532327,0.99685,2508.3,2508.0,0.39878]
[1725042532529,4.43012852,2508.5,2507.8,8.99482]
[1725042532820,0.00598838,2508.6,2507.9,0.39879]
[1725042533020,0.99686,2508.3,2507.9,0.39879]
[1725042533215,0.39878,2508.0,2507.9,0.39879]
[1725042533417,1.00271838,2508.6,2508.2,0.39874]
[1725042533622,0.39873,2508.3,2508.2,3.2078]
[1725042534223,1.39557,2508.3,2508.2,3.2078]
[1725042535228,0.00598838,2508.6,2508.5,0.3987]
[1725042535525,0.00598838,2508.6,2508.5,3.6065]
[1725042536318,0.40466838,2508.6,2508.5,3.6065]
[1725042536515,0.40466838,2508.6,2508.5,3.2078]
[1725042536715,0.3987,2508.5,2508.4,0.3987]
[1725042537019,1.39557,2508.3,2508.2,3.2078]
[1725042537425,0.39873,2508.3,2508.2,3.2078]
[1725042537827,0.39873,2508.3,2508.2,3.60655]
[1725042538027,0.39873,2508.3,2508.2,3.2078]
[1725042538727,1.39557,2508.3,2508.2,3.2078]
[1725042540124,1.39557,2508.3,2508.2,3.60655]
[1725042540125,0.39873,2508.3,2508.2,3.60655]
[1725042540320,0.39873,2508.3,2508.2,3.2078]
[1725042540530,0.39873,2508.3,2508.2,3.60655]
[1725042540919,0.39873,2508.3,2508.2,3.2078]
[1725042541324,0.39873,2508.3,2508.2,3.60655]
[1725042541528,1.00272838,2508.6,2508.3,0.39872]
[1725042541529,0.39872,2508.4,2508.3,0.39872]
[1725042541732,0.39871,2508.5,2508.4,0.39871]
[1725042541937,0.00598838,2508.6,2508.2,3.2078]
[1725042541938,0.00598838,2508.6,2508.5,0.3987]
[1725042542131,0.00598838,2508.6,2508.5,3.6065]
[1725042542339,0.00598838,2508.6,2508.5,7.5929]
[1725042542737,0.00598838,2508.6,2508.5,4.3851]
[1725042542924,0.00598838,2508.6,2508.2,3.2078]
[1725042542925,3.99238838,2508.6,2508.2,3.2078]
[1725042543126,3.99238838,2508.6,2507.4,3.2078]
[1725042543127,6.5836,2508.4,2507.4,3.2078]
[1725042543341,1.39601,2507.5,2507.4,3.01080001]
[1725042543933,0.99678,2508.5,2507.6,0.99711]
[1725042544137,0.39876,2508.2,2507.9,0.39879]
[1725042544330,0.39879,2508.0,2507.8,3.2078]
[1725042544646,0.99676,2508.5,2507.9,0.39879]
[1725042544838,0.9968,2508.4,2507.8,3.2078]
[1725042545035,0.9968,2508.4,2508.0,0.39877]
[1725042545036,0.39874,2508.3,2508.0,0.39877]
[1725042545236,5.36682869,2508.5,2508.0,0.39877]
[1725042545435,0.39874,2508.3,2508.1,3.2078]
[1725042545736,0.99677,2508.5,2508.1,3.2078]
[1725042546036,0.39875,2508.2,2508.1,3.2078]
[1725042546235,0.39874,2508.3,2508.1,3.2078]
[1725042546932,0.39875,2508.2,2507.9,0.39878]
[1725042547140,0.99681,2508.4,2507.9,0.39879]
[1725042547335,0.99684,2508.3,2507.8,3.6066]
[1725042547530,0.39879,2507.9,2507.8,3.2078]
[1725042547835,4.5085003,2508.2,2507.9,0.39879]
[1725042548040,0.39877,2508.1,2507.8,3.6066]
[1725042548442,1.00272838,2508.6,2507.9,0.40358617]
[1725042548635,0.00598838,2508.6,2507.8,3.2078]
[1725042548833,0.3987,2508.5,2508.3,0.39873]
[1725042549031,0.00598838,2508.6,2508.5,0.3987]
[1725042549339,1.19603736,2509.0,2508.9,0.39864]
[1725042549340,0.19945736,2509.0,2508.9,0.39864]
[1725042549539,0.99641,2509.4,2508.9,7.1934]
[1725042549835,0.39861,2509.1,2509.0,3.2078]
[1725042550343,0.39862,2509.0,2508.8,0.40462838]
[1725042550543,0.39862,2509.0,2508.9,3.2078]
[1725042550738,3.17458,2509.5,2508.8,0.00598838]
[1725042550739,0.39864,2508.9,2508.8,0.00598838]
[1725042551542,0.39858,2509.3,2509.0,0.39861]
[1725042551730,4.13647556,2510.3,2509.0,0.39861]
[1725042551731,0.2,2510.0,2509.2,3.2078]
[1725042551935,0.39852,2509.7,2509.3,8.59978662]
[1725042552137,0.39852,2509.7,2509.4,0.40341662]
[1725042552435,0.39852,2509.7,2509.4,3.2078]
[1725042552436,0.39851,2509.7,2509.4,3.2078]
[1725042552642,0.39851,2509.7,2509.5,3.2078]
[1725042552831,0.39851,2509.7,2509.3,4.98856]
[1725042553633,0.39852,2509.7,2509.3,4.59]
[1725042553837,0.99628,2509.8,2509.3,4.59]
[1725042554037,0.39857,2509.4,2509.1,4.59]
[1725042554240,0.2,2510.0,2509.2,3.2078]
[1725042554241,0.39855,2509.5,2509.2,3.2078]
[1725042554435,0.39857,2509.3,2509.2,3.2078]
[1725042554629,0.39852,2509.7,2509.3,0.39857]
[1725042554829,0.39852,2509.7,2509.4,4.59]
[1725042555438,4.18103863,2509.9,2509.4,4.98855]
[1725042555439,0.3985,2509.8,2509.4,4.98855]
[1725042555640,0.39851,2509.8,2509.5,3.2078]
[1725042555840,0.39849,2509.8,2509.5,3.2078]
[1725042556746,0.39851,2509.7,2509.4,4.59]
[1725042556938,0.39851,2509.7,2509.4,4.98856]
[1725042557243,0.3985,2509.8,2509.5,3.2078]
[1725042557440,0.2,2510.0,2509.5,3.2078]
[1725042557642,0.39851,2509.7,2509.5,3.2078]
[1725042557945,0.3985,2509.8,2509.5,3.60634]
[1725042558245,0.39851,2509.7,2509.4,4.98855]
[1725042558444,0.3985,2509.8,2509.6,3.2078]
[1725042558638,0.3985,2509.8,2509.5,0.39854]
[1725042558841,0.39852,2509.7,2509.4,4.98856]
[1725042559040,0.39853,2509.6,2509.4,4.59]
[1725042559240,0.39852,2509.7,2509.4,4.98855]
[1725042559440,0.2,2510.0,2509.6,4.59]
[1725042559645,0.3985,2509.8,2509.6,4.59]
[1725042559842,0.3985,2509.8,2509.6,7.7978]
[1725042560147,0.3985,2509.8,2509.6,4.59]
[1725042560341,0.2,2510.0,2509.7,3.2078]
[1725042560642,0.39851,2509.7,2509.6,4.59]
[1725042561258,0.39851,2509.7,2509.4,3.2078]
[1725042561259,0.39854,2509.5,2509.4,3.2078]
[1725042561550,0.39854,2509.5,2508.7,3.2078]
[1725042561551,0.39864,2508.9,2508.7,3.2078]
[1725042561743,1.39524,2508.9,2508.7,3.2078]
[1725042562058,16.97294766,2508.9,2508.7,3.2078]
[1725042562746,1.3954,2508.6,2508.5,4.59]
[1725042562949,0.39872,2508.4,2508.3,3.2078]
[1725042563140,1.39552,2508.4,2508.3,3.2078]
[1725042563342,5.38192,2508.4,2508.3,3.2078]
[1725042563542,0.39873,2508.3,2508.2,4.59]
[1725042563750,0.99627,2509.8,2508.7,0.99667]
[1725042563952,0.39849,2509.9,2509.7,4.59]
[1725042564146,0.2,2510.0,2509.7,8.574]
[1725042564448,0.2,2510.0,2509.9,0.39848]
[1725042564639,0.2,2510.0,2509.9,3.984]
[1725042564843,0.2,2510.0,2509.9,4.38248]
[1725042565752,2.678,2510.4,2509.9,3.984]
[1725042565753,2.2796,2510.4,2509.9,3.984]
[1725042565944,2.2796,2510.4,2510.1,0.39843]
[1725042566149,2.2796,2510.4,2510.3,3.2078]
[1725042566445,3.2078,2510.8,2510.3,0.3984]
[1725042566647,0.39834,2510.8,2510.2,7.9878]
[1725042566837,0.99564,2511.4,2510.6,4.78]
[1725042566838,0.39829,2511.1,2510.6,4.78]
[1725042567044,0.19823125,2511.5,2510.6,4.78]
[1725042567241,4.55015694,2511.3,2511.2,3.2078]
[1725042567446,3.2078,2511.9,2511.2,3.2078]
[1725042567651,3.2078,2511.9,2511.0,4.78597621]
[1725042567652,3.40774658,2511.9,2511.0,4.78597621]
[1725042567843,4.62105899,2511.8,2511.0,5.18426621]
[1725042568246,0.20132181,2512.0,2511.5,3.60602]
[1725042568444,0.20132181,2512.0,2511.5,3.2078]
[1725042568647,3.2078,2512.3,2511.7,4.78]
[1725042568851,3.2078,2512.0,2511.3,4.78]
[1725042569155,4.44165138,2511.9,2511.3,4.78]
[1725042569353,3.2078,2512.2,2511.3,4.78]
[1725042569555,7.68186566,2511.9,2511.3,4.78]
[1725042569755,4.47406566,2512.1,2511.3,4.78]
[1725042569956,3.2078,2512.0,2511.3,4.78]
[1725042570149,4.47406566,2512.2,2511.7,3.2078]
[1725042570348,4.28509879,2511.9,2511.7,3.2078]
[1725042570548,3.2078,2512.5,2511.7,4.78]
[1725042570948,4.38915543,2512.4,2511.7,4.78]
[1725042571147,4.59266048,2512.4,2511.8,3.2078]
[1725042571346,4.59266048,2512.4,2511.7,5.17819]
[1725042571560,4.38915543,2512.4,2511.7,5.17819]
[1725042571760,2.2822,2512.6,2511.7,7.9878]
[1725042571959,3.2078,2512.4,2511.7,7.9878]
[1725042572163,3.74510786,2512.5,2512.1,4.78]
[1725042572361,3.62629047,2513.8,2512.4,4.78]
[1725042572362,4.15444175,2513.2,2512.4,4.78]
[1725042572555,3.2078,2513.4,2512.8,4.78]
[1725042572859,7.36224175,2513.3,2512.8,4.78]
[1725042573047,7.36224175,2513.3,2512.4,7.9878]
[1725042573048,3.2078,2513.2,2512.4,7.9878]
[1725042573251,3.2078,2513.6,2512.8,4.78]
[1725042573450,3.2078,2513.5,2512.8,7.9878]
[1725042573651,2.2266,2513.7,2512.8,7.9878]
[1725042573958,2.2244,2514.5,2512.2,2.1419]
[1725042573959,5.4322,2514.5,2513.4,0.39791]
[1725042574157,5.4322,2514.5,2513.9,4.78]
[1725042574158,0.19432002,2514.3,2513.9,4.78]
[1725042574668,0.19432002,2514.3,2513.7,0.40384621]
[1725042574669,4.4558975,2514.2,2513.7,0.00597621]
[1725042574958,0.00336396,2515.8,2514.3,0.99445]
[1725042575164,0.00336396,2515.8,2514.1,3.6062]
[1725042575165,3.96e-06,2515.8,2515.7,5.17756]
[1725042575461,3.2078,2516.9,2515.9,0.3976]
[1725042575652,0.19882235,2517.4,2516.4,3.2078]
[1725042575853,3.2078,2517.9,2516.9,4.78]
[1725042576058,4.61007547,2518.5,2517.7,4.78]
[1725042576255,3.2078,2519.1,2518.1,4.78]
[1725042576479,0.39732939,2520.0,2518.7,4.78]
[1725042576480,0.77101005,2519.0,2518.7,4.78]
[1725042576759,3.6044353,2520.0,2518.7,4.78]
[1725042576966,0.39693,2519.7,2518.7,7.9878]
[1725042577168,0.20344057,2519.7,2518.7,7.9878]
[1725042577355,4.60134974,2519.6,2518.7,3.2078]
[1725042577550,4.60134974,2519.6,2518.4,3.2078]
[1725042577750,3.2078,2519.2,2518.3,0.0059641]
[1725042577948,3.2078,2519.2,2517.8,3.2078]
[1725042577949,0.39716,2518.3,2517.8,0.3976]
[1725042578256,0.99272,2518.8,2517.5,3.2078]
[1725042578460,3.96304656,2518.2,2517.5,3.2078]
[1725042578661,0.39722,2517.9,2517.5,3.2078]
[1725042578875,0.39722,2517.9,2516.7,0.3974]
[1725042578876,0.39722,2517.9,2516.7,3.2078]
[1725042578877,3.2078,2517.7,2516.7,3.2078]
[1725042579167,3.2078,2517.7,2515.0,0.99417]
[1725042579168,3.2078,2517.4,2515.9,3.2078]
[1725042579349,3.2078,2517.1,2515.8,3.2078]
[1725042579751,4.06492742,2517.0,2515.8,3.2078]
[1725042579953,4.06492742,2517.0,2516.1,0.0059641]
[1725042580169,3.2078,2516.8,2516.1,0.0059641]
[1725042580458,0.39748,2516.2,2516.1,0.0059641]
[1725042580852,14.43680742,2516.2,2516.1,0.0059641]
[1725042581267,8.03932742,2516.2,2516.1,0.0059641]
[1725042581449,0.0059641,2516.4,2516.1,0.0059641]
[1725042581763,0.39748,2516.2,2516.1,0.0059641]
[1725042582153,0.0059641,2516.4,2516.1,9.9803641]
[1725042582468,0.3972,2518.0,2517.2,0.39732]
[1725042582763,0.39724,2517.7,2517.3,3.2078]
[1725042583061,0.39727,2517.6,2517.3,3.2078]
[1725042583361,0.39695,2519.6,2518.0,4.20076]
[1725042583565,0.19969581,2520.6,2519.4,4.78]
[1725042583566,3.2078,2520.6,2519.4,4.78]
[1725042583863,0.20588314,2520.0,2519.4,4.78]
[1725042584160,0.20588314,2520.0,2519.9,3.2078]
[1725042584760,0.20588314,2520.0,2519.9,3.968]
[1725042584954,4.17388314,2520.0,2519.3,3.2078]
[1725042585157,0.60277314,2520.0,2519.3,0.3976]
[1725042585466,0.60277314,2520.0,2519.7,3.2078]
[1725042585467,0.20588314,2520.0,2519.7,3.2078]
[1725042585965,0.20588314,2520.0,2519.6,3.2078]
[1725042586348,0.20588314,2520.0,2519.9,3.6047]
[1725042586554,3.4073059,2521.4,2520.6,0.39678]
[1725042586761,0.41436012,2525.3,2519.9,9.2078]
[1725042586762,3.2078,2524.0,2522.1,3.2078]
[1725042586961,0.99021,2525.1,2523.4,4.78]
[1725042586962,4.19825,2524.5,2523.4,4.78]
[1725042587270,2.3039,2525.4,2522.1,4.78]
[1725042587271,4.26231606,2523.9,2522.9,4.78]
[1725042587461,4.26231606,2523.9,2522.5,4.78]
[1725042587462,0.39645,2522.8,2522.5,4.78]
[1725042587763,3.2078,2523.4,2522.4,0.0059512]
[1725042587967,0.39648,2522.6,2522.4,0.0059512]
[1725042588149,0.39649,2522.5,2522.4,0.0059512]
[1725042588355,3.964,2522.7,2522.4,0.0059512]
[1725042588556,0.06447924,2523.0,2522.4,0.0059512]
[1725042588761,0.39649,2522.5,2522.4,0.0059512]
[1725042588956,0.39649,2522.5,2522.4,1.2e-06]
[1725042589253,12.40740924,2522.5,2522.4,1.2e-06]
[1725042589457,0.99145,2522.0,2520.8,3.2078]
[1725042589658,4.19925,2522.0,2520.9,3.2078]
[1725042589965,0.19873139,2522.7,2520.9,3.2078]
[1725042589966,4.43575787,2521.9,2520.9,3.2078]
[1725042590167,2.3325,2523.7,2521.6,3.2078]
[1725042590168,3.2078,2523.2,2521.6,3.2078]
[1725042590370,3.2078,2523.2,2522.8,3.2078]
[1725042590659,3.2078,2523.2,2522.1,0.0059512]
[1725042590660,3.21370821,2523.3,2522.1,0.0059512]
[1725042590864,3.2078,2523.0,2522.1,0.0059512]
[1725042591067,3.2078,2522.4,2522.1,0.0059512]
[1725042591362,4.05685734,2522.3,2522.1,0.0059512]
[1725042591660,10.05685734,2522.3,2522.1,0.0059512]
[1725042591861,7.1726,2522.2,2521.1,3.2078]
[1725042592061,7.1726,2522.2,2520.7,5.95]
[1725042592062,3.2078,2522.2,2520.7,5.95]
[1725042592266,4.35958086,2522.1,2521.1,3.2078]
[1725042592459,4.35958086,2522.1,2521.3,3.2078]
[1725042592660,3.2078,2522.0,2521.3,3.2078]
[1725042592860,3.2137512,2521.9,2521.4,0.0059512]
[1725042593168,3.2078,2521.8,2521.4,0.0059512]
[1725042593358,0.0059512,2521.9,2521.4,0.0059512]
[1725042594068,0.0059512,2521.9,2521.5,3.2078]
[1725042594383,4.50070011,2521.8,2521.4,0.0059512]
[1725042594564,4.50070011,2521.8,2521.7,3.2078]
[1725042594775,8.46630011,2521.8,2521.4,0.0059512]
[1725042594958,0.0059512,2521.9,2521.4,0.0059512]
[1725042595262,0.0059512,2521.9,2521.8,3.2078]
[1725042595467,2.2595,2522.8,2521.8,9.2078]
[1725042595657,3.2078,2523.0,2521.8,3.2078]
[1725042595860,2.1993,2523.9,2522.4,3.2078]
[1725042595861,4.43067171,2522.6,2522.4,3.2078]
[1725042596060,2.1993,2523.9,2522.4,3.2078]
[1725042596268,3.2078,2523.7,2522.9,3.2078]
[1725042596566,2.2731,2525.0,2523.6,3.2078]
[1725042596567,3.2078,2524.4,2523.6,3.2078]
[1725042596869,5.95,2526.2,2523.8,3.2078]
[1725042596870,0.00907221,2524.1,2523.8,3.2078]
[1725042597062,2.21e-06,2524.1,2523.9,3.9624]
[1725042597267,2.21e-06,2524.1,2524.0,4.35785]
[1725042597570,3.2078,2525.7,2524.0,7.5662]
[1725042597866,4.39398095,2525.9,2524.7,3.2078]
[1725042598167,3.2078,2527.0,2525.4,3.2078]
[1725042598372,3.36734604,2529.4,2525.4,3.2078]
[1725042598373,3.2078,2527.8,2526.0,0.39592]
[1725042598568,7.39260232,2526.9,2526.0,3.2078]
[1725042598864,4.18480232,2527.6,2526.4,9.1578]
[1725042599069,0.39575,2527.2,2526.7,3.2078]
[1725042599269,3.22435232,2527.7,2527.6,0.39569]
[1725042599466,4.5904291,2529.3,2527.6,9.1578]
[1725042599663,0.98815,2530.4,2528.4,5.95]
[1725042599664,3.2078,2529.9,2528.4,5.95]
[1725042599859,3.2078,2529.3,2528.2,0.00593907]
[1725042600059,4.5904291,2529.2,2528.2,0.00593907]
[1725042600277,3.2078,2529.5,2528.2,0.00593907]
[1725042600467,3.2078,2529.5,2528.6,0.00593907]
[1725042600775,2.1451,2531.7,2529.2,0.79144]
[1725042600776,3.31970265,2529.3,2529.2,0.79144]
[1725042600967,4.39318947,2531.7,2529.2,15.5538]
[1725042601276,4.39318947,2531.7,2529.4,5.95]
[1725042601277,3.2078,2531.0,2529.4,5.95]
[1725042601475,4.31728265,2531.5,2529.6,3.2078]
[1725042601476,3.2078,2530.9,2529.6,3.2078]
[1725042601673,4.1962,2529.7,2528.7,3.2078]
[1725042601863,0.39541,2529.4,2529.3,3.2078]
[1725042602062,0.98822,2530.2,2529.1,3.2078]
[1725042602063,0.95237179,2529.3,2529.1,3.2078]
[1725042602567,4.28206537,2529.3,2529.1,3.2078]
[1725042602775,11.69401602,2529.2,2527.6,3.2078]
[1725042602973,11.69401602,2529.2,2525.3,7.93019]
[1725042602974,0.39574,2527.3,2527.0,3.2078]
[1725042603167,0.95237179,2527.0,2526.7,3.2078]
[1725042603667,0.95237179,2527.0,2526.6,3.2078]
[1725042603668,1.0742563,2527.0,2526.6,3.2078]
[1725042603879,0.39596,2525.9,2525.8,3.2078]
[1725042604269,0.00593907,2526.1,2525.8,12.21462821]
[1725042604469,3.2078,2527.8,2525.9,9.9092]
[1725042604668,3.2078,2527.5,2525.9,5.95]
[1725042604878,0.39582,2526.8,2525.9,9.1578]
[1725042605069,0.98935,2527.3,2526.7,3.2078]
[1725042605267,3.32968451,2527.5,2526.0,3.2078]
[1725042605468,0.12188451,2526.4,2526.0,3.2078]
[1725042605767,0.12188451,2526.4,2524.4,0.99047]
[1725042605768,3.2078,2526.2,2524.5,0.396]
[1725042605969,4.39362588,2526.3,2525.0,3.2078]
[1725042606173,4.39362588,2526.3,2524.2,3.2078]
[1725042606174,3.2078,2525.1,2524.2,3.2078]
[1725042606477,1.97955,2526.2,2523.4,3.2078]
[1725042606478,3.2078,2524.5,2523.4,3.2078]
[1725042606776,0.39653,2522.3,2522.2,3.2078]
[1725042606977,4.39362588,2525.0,2520.8,5.95]
[1725042606978,0.99126,2522.4,2521.9,3.2078]
[1725042607274,0.39668,2521.3,2521.2,3.2078]
[1725042607479,0.39668,2521.3,2519.7,3.2078]
[1725042607480,3.2078,2521.3,2519.7,3.2078]
[1725042607671,3.2078,2521.3,2519.5,5.95]
[1725042607672,0.39677,2520.7,2520.6,3.2078]
[1725042607867,4.52555022,2521.3,2520.6,3.2078]
[1725042608173,4.25146622,2521.9,2521.1,3.2078]
[1725042608381,0.00595144,2521.2,2521.1,3.2078]
[1725042608781,5.05049701,2522.3,2520.0,5.95]
[1725042608782,3.2078,2521.4,2520.5,3.2078]
[1725042609079,3.2078,2521.4,2520.9,3.21375144]
[1725042609080,4.37329314,2521.4,2520.9,3.21375144]
[1725042609280,4.37329314,2521.4,2521.3,3.2078]
[1725042609578,3.2078,2523.2,2521.3,9.2078]
[1725042609765,4.36372907,2522.2,2521.6,3.2078]
[1725042609967,0.99104,2523.0,2522.1,3.2078]
[1725042609968,3.96719907,2522.5,2522.1,3.2078]
[1725042610172,3.2078,2523.0,2521.8,3.2078]
[1725042610376,0.39658,2521.9,2521.1,3.2078]
[1725042610575,3.96719907,2521.2,2521.1,3.2078]
[1725042610874,0.39676,2520.8,2520.4,3.2078]
[1725042611095,0.9916,2521.6,2520.4,3.2078]
[1725042611096,0.00595144,2521.4,2520.7,3.2078]
[1725042611380,0.00595144,2521.4,2521.3,3.2078]
[1725042611678,0.00595144,2521.4,2521.3,7.1742]
[1725042611972,0.00595144,2521.4,2521.3,3.2078]
[1725042612171,0.39662,2521.7,2520.9,3.2078]
[1725042612363,3.96719907,2521.6,2521.2,3.2078]
[1725042612763,3.96719907,2521.3,2521.2,3.2078]
[1725042613168,0.39672,2521.1,2520.9,3.2078]
[1725042613370,0.00591512,2521.5,2520.9,3.2078]
[1725042613572,0.00591512,2521.5,2520.8,0.00595144]
[1725042613573,0.00591512,2521.5,2520.8,3.61050144]
[1725042613775,3.2078,2522.8,2521.4,3.2078]
[1725042613975,0.99092,2523.3,2521.7,3.2078]
[1725042613976,3.2078,2523.1,2521.7,3.2078]
[1725042614184,2.52513174,2524.0,2521.5,0.3968]
[1725042614185,3.96719907,2521.8,2521.5,3.2078]
[1725042614481,0.75939907,2520.9,2520.2,3.2078]
[1725042614669,0.75939907,2520.4,2520.2,3.2078]
[1725042614874,0.75939907,2520.3,2520.0,0.00595144]
[1725042615074,3.2078,2520.5,2520.0,0.00595144]
[1725042615379,1.15625907,2520.1,2520.0,0.00595144]
[1725042615674,0.75939907,2520.3,2520.0,6.0]
[1725042615871,0.75939907,2520.4,2519.8,3.2078]
[1725042616076,0.75939907,2520.3,2519.8,3.2078]
[1725042616273,0.99182,2521.0,2519.5,0.3976]
[1725042616274,3.2078,2521.2,2520.1,3.2078]
[1725042616464,3.21375144,2520.9,2520.4,0.00595144]
[1725042616667,0.75939907,2520.5,2520.4,0.00595144]
[1725042616884,1.15619907,2520.5,2520.4,0.00595144]
[1725042617068,1.15619907,2520.5,2519.5,0.3976]
[1725042617069,3.96719907,2520.5,2519.5,0.3976]
[1725042617279,0.75939907,2520.0,2519.5,0.3976]
[1725042617574,3.2078,2520.1,2519.1,3.2078]
[1725042617775,0.39705,2518.9,2518.8,3.2078]
[1725042617980,0.39705,2518.9,2517.9,5.95]
[1725042617981,0.75939907,2518.7,2518.5,3.2078]
[1725042618185,0.3971,2518.7,2518.5,3.2078]
[1725042618480,0.00595144,2518.9,2518.5,3.2078]
[1725042619177,1.15652907,2518.4,2518.3,1.44e-06]
[1725042619395,0.39733,2517.2,2516.9,3.2078]
[1725042619568,3.2078,2518.4,2517.0,0.3976]
[1725042619569,0.75939763,2517.9,2517.0,0.3976]
[1725042619772,2.2421,2520.0,2517.8,3.2078]
[1725042619773,3.2078,2518.7,2517.8,3.2078]
[1725042619980,3.2078,2518.7,2517.4,5.95]
[1725042619981,0.75939763,2518.5,2518.1,3.2078]
[1725042620189,0.75939763,2518.5,2517.0,0.3976]
[1725042620190,0.75939763,2518.2,2517.5,3.2078]
[1725042620475,0.39724,2517.7,2517.6,0.00595144]
[1725042620677,3.2078,2517.8,2517.6,0.00595144]
[1725042620867,4.30511728,2518.1,2517.6,0.00595144]
[1725042620868,4.36443763,2517.7,2517.6,0.00595144]
[1725042621276,4.36443763,2517.7,2517.6,1.44e-06]
[1725042621470,8.25437438,2517.7,2516.6,3.2078]
[1725042621671,4.28717819,2517.7,2517.6,0.39726]
[1725042621883,0.00595144,2518.1,2516.9,9.1578]
[1725042622083,0.75939619,2517.5,2516.9,3.2078]
[1725042622380,0.75939619,2517.0,2516.9,3.2078]
[1725042622586,3.2078,2517.5,2516.9,3.2078]
[1725042622587,3.2078,2517.2,2516.9,0.00595144]
[1725042622879,3.21375144,2518.1,2516.9,0.00595144]
[1725042623074,0.75939619,2517.8,2516.9,3.21375144]
[1725042623479,0.75939619,2517.8,2517.2,3.2078]
[1725042623673,0.75939619,2517.8,2516.9,0.00595144]
[1725042623674,0.75939619,2517.3,2516.9,0.00595144]
[1725042623871,3.2078,2517.6,2516.9,3.97875144]
[1725042624070,4.42873281,2517.7,2516.9,0.00595144]
[1725042624071,0.16324252,2517.3,2516.9,0.00595144]
[1725042624270,0.16324252,2517.3,2516.9,0.40332144]
[1725042624473,0.00595144,2518.1,2517.6,0.39725]
[1725042624678,0.16324252,2517.8,2517.3,3.2078]
[1725042624876,0.16324252,2517.8,2517.6,0.39726]
[1725042625178,0.16324252,2517.8,2517.0,0.39734]
[1725042625478,0.16324252,2517.2,2516.9,0.00595144]
[1725042625672,0.16324252,2517.1,2516.9,0.00595144]
[1725042626176,0.39735,2517.0,2516.9,0.00595144]
[1725042626382,3.2078,2517.2,2516.1,3.05050892]
[1725042626575,3.2078,2517.2,2515.0,0.99414]
[1725042626576,0.39751,2516.1,2515.4,0.3976]
[1725042626884,3.60534,2515.9,2515.3,0.39762]
[1725042627076,3.60534,2515.9,2515.2,3.2078]
[1725042627077,3.2078,2515.9,2515.2,3.2078]
[1725042627385,4.3521237,2516.4,2515.8,3.2078]
[1725042627574,3.2078,2517.1,2516.1,0.39749]
[1725042627770,3.2078,2517.1,2515.8,3.2078]
[1725042627771,0.00595144,2516.4,2516.3,0.00595144]
[1725042627987,0.40340144,2516.4,2516.3,0.00595144]
[1725042628277,4.05795731,2516.4,2516.3,0.00595144]
[1725042628582,3.2078,2517.3,2516.8,0.39737]